bitfinex/quotes_ETHUSD_20230703
["timestamp","ask_amount","ask_price","bid_price","bid_amount"]
[1688386328767,10.21440844,1961.1,1960.8,0.1]
[1688386329011,15.31359844,1961.1,1960.8,0.1]
[1688386339162,15.31359844,1961.1,1960.5,1.0]
[1688386339163,2.55878816,1960.9,1960.5,1.0]
[1688386339447,29.07170087,1960.8,1960.5,1.0]
[1688386339649,16.6024,1960.6,1960.5,1.0]
[1688386339823,19.16118816,1960.6,1960.5,1.0]
[1688386340023,19.64118816,1960.6,1960.5,1.0]
[1688386340531,19.64794138,1960.6,1960.5,1.0]
[1688386340755,21.61273552,1960.6,1960.5,1.0]
[1688386342630,18.58250552,1960.6,1960.5,1.0]
[1688386342836,15.31671138,1960.6,1960.5,1.0]
[1688386343340,0.00675322,1960.6,1960.5,1.0]
[1688386343531,0.00675322,1960.6,1960.5,11.20146]
[1688386344460,10.20014,1960.8,1960.5,11.20146]
[1688386345455,0.00748099,1960.7,1960.5,11.20146]
[1688386345647,5.10772099,1960.7,1960.5,12.576655]
[1688386346665,0.00748099,1960.7,1960.5,12.576655]
[1688386346858,0.00748099,1960.7,1960.5,13.877655]
[1688386347139,0.00748099,1960.7,1960.5,16.428015]
[1688386347571,10.19968,1960.9,1960.5,16.428015]
[1688386347755,5.09997,1960.8,1960.6,1.6428015]
[1688386347960,5.09997,1960.8,1960.6,11.8434515]
[1688386348468,0.00748099,1960.7,1960.6,11.8434515]
[1688386349839,2.55758099,1960.7,1960.5,1.0]
[1688386350039,12.75800099,1960.7,1960.5,1.0]
[1688386354968,15.31678915,1960.7,1960.5,1.0]
[1688386355301,15.31678915,1960.7,1960.2,0.1]
[1688386355302,8.409,1960.3,1960.2,0.1]
[1688386355492,8.909,1960.1,1960.0,0.059654]
[1688386355697,26.77312816,1960.1,1960.0,0.059654]
[1688386355849,18.34412816,1960.1,1960.0,0.059654]
[1688386356048,21.34412816,1960.1,1960.0,0.059654]
[1688386356244,24.77954098,1960.1,1960.0,0.059654]
[1688386356458,24.78871742,1960.1,1960.0,0.059654]
[1688386357374,24.78871742,1960.1,1959.8,0.1]
[1688386357375,12.76362644,1960.1,1959.8,1.301]
[1688386357686,12.76362644,1960.1,1959.5,5.10323]
[1688386357687,12.76362644,1960.1,1959.5,5.10312]
[1688386357864,12.76362644,1960.1,1959.5,11.50346]
[1688386358059,12.76362644,1960.1,1959.5,14.05513]
[1688386358281,12.76362644,1960.1,1959.5,12.75813]
[1688386358583,12.76362644,1960.1,1959.7,5.1028]
[1688386359361,11.46778816,1960.0,1959.1,0.89961214]
[1688386359565,1.301,1959.7,1959.2,0.88694981]
[1688386359866,1.301,1959.7,1959.1,0.63412937]
[1688386359867,15.30962,1959.6,1959.1,0.1]
[1688386360453,0.00900154,1959.5,1959.1,0.1]
[1688386360650,12.75912,1959.4,1959.1,0.1]
[1688386361586,5.10412,1959.2,1959.1,0.1]
[1688386362453,5.11303405,1959.2,1959.1,0.1]
[1688386362985,5.355,1959.1,1958.9,0.1]
[1688386363195,15.32038816,1959.0,1958.9,0.1]
[1688386363491,0.0088557,1959.0,1958.9,0.1]
[1688386363660,0.0088557,1959.0,1958.9,10.3098]
[1688386363864,0.0088557,1959.0,1958.9,7.0259]
[1688386364061,0.0088557,1959.0,1958.9,8.248997]
[1688386364278,5.1134957,1959.0,1958.9,0.1]
[1688386364462,5.10464,1959.0,1958.9,0.1]
[1688386364677,10.20928,1959.0,1958.9,0.1]
[1688386365197,12.7616,1959.0,1958.9,0.1]
[1688386365518,12.7704557,1959.0,1958.9,0.1]
[1688386365655,14.30272427,1959.0,1958.9,0.1]
[1688386366358,17.34151243,1959.0,1958.9,0.1]
[1688386366557,12.7704557,1959.0,1958.9,0.1]
[1688386367292,15.32924386,1959.0,1958.9,0.1]
[1688386367879,7.67228386,1959.0,1958.9,0.1]
[1688386368082,10.2181357,1959.0,1958.9,0.1]
[1688386368280,10.2181357,1959.0,1958.8,0.1]
[1688386368281,25.98924386,1959.0,1958.8,0.1]
[1688386368592,13.99271255,1958.9,1958.8,0.1]
[1688386368796,26.75496255,1958.9,1958.8,0.1]
[1688386368968,28.57796255,1958.9,1958.8,0.1]
[1688386369181,28.57796255,1958.9,1958.7,0.059654]
[1688386369496,10.23978816,1958.8,1958.6,0.1]
[1688386369797,29.55202698,1958.7,1958.6,0.1]
[1688386370297,29.56853457,1958.7,1957.6,6.9202]
[1688386370605,8.409,1958.4,1957.8,5.10776]
[1688386370899,10.21304,1958.3,1958.0,5.20721]
[1688386371056,5.10633,1958.4,1958.0,10.31446]
[1688386371367,5.10573,1958.6,1958.4,5.10602]
[1688386371570,12.77038816,1958.6,1958.2,5.1066]
[1688386371982,5.10621,1958.4,1958.2,5.10671]
[1688386372186,5.10621,1958.4,1958.1,5.10696]
[1688386372367,10.21242,1958.4,1958.0,12.12938]
[1688386372568,2.55259,1958.8,1958.0,13.59769]
[1688386372789,2.55259,1958.8,1958.2,1.817]
[1688386372790,5.10577,1958.6,1958.2,1.817]
[1688386372992,5.59151816,1958.7,1958.3,10.21277]
[1688386372993,5.10552,1958.7,1958.3,10.21277]
[1688386373199,7.66430816,1958.7,1958.3,12.766]
[1688386373491,2.55878816,1958.7,1958.3,12.766]
[1688386373655,2.55878816,1958.7,1958.4,1.2766]
[1688386373859,2.55878816,1958.7,1958.5,5.10594]
[1688386374601,7.66421816,1958.7,1958.5,5.10594]
[1688386375096,7.66422816,1958.7,1958.5,5.10594]
[1688386375298,5.10521,1958.8,1958.5,5.10594]
[1688386375460,10.21,1958.9,1958.5,10.21188]
[1688386375662,5.10496,1958.9,1958.5,13.179728]
[1688386376281,5.1047,1959.0,1958.5,15.732698]
[1688386376463,7.66348816,1959.0,1958.7,1.813]
[1688386376664,5.10455,1959.1,1958.7,12.02364]
[1688386376858,10.20909,1959.1,1958.7,12.02364]
[1688386377060,2.55132,1959.8,1959.0,3.645]
[1688386377265,10.20546,1959.8,1959.2,12.76005]
[1688386377463,10.20546,1959.8,1959.3,1.817]
[1688386377697,12.75674,1959.8,1959.4,1.813]
[1688386378000,15.31552816,1959.8,1959.4,12.0202]
[1688386378171,12.76424816,1959.8,1959.4,12.0202]
[1688386378374,7.66151816,1959.8,1959.4,14.572]
[1688386378586,10.20503,1959.9,1959.4,16.0292]
[1688386378787,10.20503,1959.9,1959.6,1.821]
[1688386378788,7.66127816,1959.9,1959.6,1.821]
[1688386379123,12.76368816,1959.9,1959.6,6.92404]
[1688386379266,5.10241,1959.9,1959.6,12.02712]
[1688386379605,2.55091,1960.1,1959.7,1.821]
[1688386379606,5.10189,1960.1,1959.7,1.821]
[1688386379775,5.10189,1960.1,1959.8,10.205]
[1688386379776,12.76255816,1960.1,1959.8,10.205]
[1688386379977,12.76255816,1960.1,1959.8,5.1025]
[1688386380706,2.55078,1960.2,1959.8,12.75634]
[1688386380707,5.10156,1960.2,1959.8,12.75634]
[1688386380911,5.10139,1960.3,1959.8,10.20506]
[1688386381201,5.10139,1960.3,1959.8,12.75634]
[1688386381805,7.66017816,1960.3,1959.8,12.75634]
[1688386382163,2.55878816,1960.3,1959.8,12.75634]
[1688386382466,2.55878816,1960.3,1959.8,16.637974]
[1688386383574,7.66012816,1960.3,1959.8,16.637974]
[1688386383791,12.76146816,1960.3,1959.8,16.637974]
[1688386384013,2.57529575,1960.2,1959.6,5.10284]
[1688386384231,2.57529575,1960.2,1959.6,10.20578]
[1688386384232,10.68396,1960.1,1959.6,10.20578]
[1688386384504,13.24274816,1960.1,1959.6,10.20578]
[1688386385482,14.82375673,1960.1,1959.6,10.20578]
[1688386386215,13.24274816,1960.1,1959.6,12.75732]
[1688386387909,2.55878816,1960.0,1959.4,3.0]
[1688386388131,2.55878816,1960.0,1959.4,5.10347]
[1688386388132,0.48,1959.9,1959.4,5.10347]
[1688386388316,12.76403816,1959.8,1959.4,5.10347]
[1688386388485,2.55878816,1959.8,1959.4,10.20707]
[1688386388875,5.58235,1959.9,1959.4,12.75887]
[1688386389074,8.14109816,1959.9,1959.4,12.75887]
[1688386389802,2.55878816,1959.9,1959.4,12.75887]
[1688386390009,7.66115816,1959.9,1959.4,14.550544]
[1688386390192,5.1023,1959.9,1959.4,14.550544]
[1688386390953,5.1023,1959.9,1959.5,2.606]
[1688386391154,5.1023,1959.9,1959.6,12.75757]
[1688386391462,5.10215,1960.0,1959.6,12.75757]
[1688386391640,10.20428,1960.0,1959.6,12.75757]
[1688386392653,5.10213,1960.0,1959.6,14.293927]
[1688386393371,2.55065,1960.3,1959.7,2.606]
[1688386393372,10.20273,1960.3,1959.7,2.606]
[1688386393660,7.66012816,1960.3,1959.9,10.2044]
[1688386394151,5.10134,1960.3,1959.9,12.75555]
[1688386394333,10.2026,1960.3,1959.9,12.75555]
[1688386399557,10.2026,1960.3,1959.9,10.2044]
[1688386399758,14.02854,1960.3,1959.9,10.2044]
[1688386402461,12.75323,1960.3,1959.9,10.2044]
[1688386403665,2.55878816,1960.2,1959.9,10.2044]
[1688386403869,10.20356,1960.1,1959.8,5.10245]
[1688386404171,10.20356,1960.1,1959.8,10.20486]
[1688386406960,3.03878816,1960.2,1959.8,10.20486]
[1688386407155,3.85280998,1960.2,1959.8,10.20486]
[1688386408167,3.85280998,1960.2,1959.8,12.75614]
[1688386408463,3.03878816,1960.2,1959.8,12.75614]
[1688386409772,6.68534,1960.5,1959.8,12.75614]
[1688386409935,8.13983816,1960.4,1959.8,12.75614]
[1688386412770,13.24088816,1960.4,1959.8,12.75614]
[1688386416672,15.79137816,1960.4,1959.8,5.10241]
[1688386416874,1.57913782,1960.3,1959.7,5.10276]
[1688386417054,13.24204816,1960.2,1959.7,5.10276]
[1688386418068,13.24204816,1960.2,1959.7,10.20558]
[1688386421497,5.10154,1960.2,1959.7,12.75699]
[1688386422045,5.10154,1960.2,1959.7,14.032689]
[1688386422688,5.10136,1960.3,1959.7,14.032689]
[1688386423552,10.2017,1960.5,1959.8,2.599]
[1688386423785,5.10101,1960.4,1960.0,10.20402]
[1688386423955,5.10101,1960.4,1960.0,12.75504]
[1688386424157,5.10101,1960.4,1960.0,14.030544]
[1688386424352,5.10074,1960.5,1960.0,14.030544]
[1688386424761,10.20159,1960.5,1960.0,14.030544]
[1688386426388,12.75195,1960.5,1960.0,14.030544]
[1688386427196,12.74395,1960.5,1960.0,14.030544]
[1688386427365,12.74395,1960.5,1960.0,11.479524]
[1688386427996,12.74395,1960.5,1960.0,1.275504]
[1688386428207,17.22916365,1960.5,1959.9,5.10217]
[1688386429310,19.78795181,1960.5,1959.8,1.7112]
[1688386429874,2.55878816,1960.4,1959.7,11.481039]
[1688386430207,10.20308,1960.2,1959.7,11.481039]
[1688386431006,12.76186816,1960.2,1959.7,14.032449]
[1688386431502,15.31262816,1960.2,1959.7,14.032449]
[1688386431710,12.76186816,1960.2,1959.7,14.032449]
[1688386431875,15.31262816,1960.2,1959.7,14.032449]
[1688386432204,15.31262816,1960.2,1959.7,11.481039]
[1688386432403,16.89189098,1960.2,1959.7,10.20534]
[1688386435507,5.10154,1960.2,1959.7,12.75675]
[1688386435719,10.20281,1960.3,1959.7,12.75675]
[1688386435932,5.1014,1960.3,1959.7,12.75675]
[1688386436428,10.21932759,1960.3,1959.7,12.75675]
[1688386436907,12.76995759,1960.3,1959.7,12.75675]
[1688386437108,12.76995759,1960.3,1959.7,14.48831299]
[1688386437702,12.76995759,1960.3,1959.6,4.55887985]
[1688386437703,0.48,1960.2,1959.6,5.50221985]
[1688386437899,10.20396,1960.1,1959.6,10.60514985]
[1688386440015,10.20396,1960.1,1959.6,13.15668985]
[1688386440190,10.20396,1960.1,1959.6,0.39928985]
[1688386440191,15.31363816,1960.1,1959.6,0.39928985]
[1688386440393,3.57918416,1960.0,1959.4,6.80968]
[1688386440595,12.75615,1959.9,1959.1,5.10419]
[1688386440793,15.31493816,1959.9,1959.1,6.72649]
[1688386441019,4.09028198,1959.8,1959.1,1.6223]
[1688386441215,10.2062,1959.6,1959.1,1.6223]
[1688386441526,10.2062,1959.6,1959.1,10.20871]
[1688386441527,12.75774,1959.6,1959.1,10.20871]
[1688386441890,12.75774,1959.6,1959.1,12.7609]
[1688386442329,12.75774,1959.6,1959.1,10.20871]
[1688386442504,12.75774,1959.6,1959.1,12.7609]
[1688386442927,5.1031,1959.6,1959.1,15.90124447]
[1688386444145,5.10264,1959.8,1959.1,16.63603263]
[1688386444305,5.10264,1959.8,1959.5,10.20658]
[1688386444306,5.10283,1959.7,1959.5,10.20658]
[1688386444511,5.10283,1959.7,1959.5,5.10329]
[1688386444711,5.10283,1959.7,1959.5,5.10332]
[1688386446037,4.14063,1960.1,1959.5,5.10332]
[1688386446038,30.56,1960.2,1959.5,13.779008]
[1688386446255,30.56,1960.2,1959.7,1.824]
[1688386446415,10.20275,1960.3,1959.8,10.20486]
[1688386446416,5.10137,1960.3,1959.8,10.20486]
[1688386446620,12.76150816,1960.3,1959.8,5.10253]
[1688386446809,12.76150816,1960.3,1959.8,10.20509]
[1688386447141,7.66013816,1960.3,1959.8,10.20509]
[1688386448352,13.80205759,1960.4,1959.8,12.75637]
[1688386448652,16.36084575,1960.4,1959.8,12.75637]
[1688386450542,18.91133575,1960.4,1959.8,12.75637]
[1688386450750,24.02681776,1960.4,1959.8,12.75637]
[1688386450946,11.25970575,1960.4,1959.8,12.75637]
[1688386451313,10.21885759,1960.4,1959.8,12.75637]
[1688386451555,5.11761759,1960.4,1959.8,12.75637]
[1688386451853,10.21860759,1960.4,1959.8,12.75637]
[1688386452216,10.21860759,1960.4,1959.8,10.20509]
[1688386452416,15.03310435,1960.4,1959.8,12.75637]
[1688386452641,20.14238251,1960.4,1959.8,10.20509]
[1688386456260,7.38979251,1960.4,1959.6,5.511]
[1688386456462,21.74296251,1960.4,1959.8,10.20509]
[1688386456641,2.17429625,1960.3,1959.8,10.20509]
[1688386456828,5.10162,1960.2,1959.8,10.20509]
[1688386457774,12.7555,1960.0,1959.3,8.51109998]
[1688386457925,12.7555,1960.0,1959.2,5.10395]
[1688386457926,13.24365816,1959.9,1959.2,5.10395]
[1688386458124,9.41666816,1959.9,1959.3,10.20761]
[1688386458325,4.31433816,1959.9,1959.3,10.20761]
[1688386458761,9.41666816,1959.9,1959.3,10.20761]
[1688386458956,1.75555,1959.9,1959.3,12.75954]
[1688386459157,0.48,1959.9,1959.5,12.75802]
[1688386459334,1.5069,1960.0,1959.5,12.75802]
[1688386459536,4.06568816,1960.0,1959.5,12.75802]
[1688386459866,7.10055,1960.2,1959.5,12.75802]
[1688386460049,0.48,1960.1,1959.5,12.75802]
[1688386460364,11.27523816,1960.2,1959.6,1.275802]
[1688386460570,11.27523816,1960.2,1959.7,12.7566]
[1688386461356,9.65933816,1960.2,1959.7,12.7566]
[1688386461562,14.76096816,1960.2,1959.7,12.7566]
[1688386461922,9.65931816,1960.2,1959.7,5.10261]
[1688386462160,9.0507462,1960.2,1959.7,5.10261]
[1688386462380,0.01650759,1960.3,1959.7,5.10261]
[1688386462560,3.5423,1960.4,1959.7,12.75684]
[1688386462727,1.9264,1960.4,1959.7,12.75684]
[1688386463061,12.12856,1960.4,1959.8,1.275684]
[1688386463230,12.12856,1960.4,1959.9,5.10215]
[1688386465258,12.75265,1960.4,1959.9,5.10215]
[1688386465430,5.10108,1960.4,1959.9,10.20445]
[1688386465641,10.20216,1960.4,1959.9,10.20445]
[1688386465848,10.20216,1960.4,1960.0,1.020445]
[1688386465849,5.101,1960.4,1960.0,1.020445]
[1688386466158,5.101,1960.4,1960.1,5.10171]
[1688386468242,10.202,1960.4,1960.1,5.10171]
[1688386469485,0.4050951,1960.6,1960.1,5.10171]
[1688386469694,5.10062,1960.6,1960.2,0.510171]
[1688386469863,5.10062,1960.6,1960.3,10.2024]
[1688386470197,5.10062,1960.6,1960.4,0.00799988]
[1688386470387,5.10062,1960.6,1960.4,5.10096]
[1688386470690,5.10022,1960.7,1960.4,10.20179]
[1688386470853,5.10022,1960.7,1960.5,5.10073]
[1688386471047,5.10009,1960.8,1960.5,10.20146]
[1688386471276,5.10009,1960.8,1960.5,5.10073]
[1688386472150,5.10004,1960.8,1960.5,5.10073]
[1688386472366,10.19999,1960.8,1960.5,5.10073]
[1688386472610,12.74996,1960.8,1960.4,12.02566]
[1688386472792,12.74996,1960.8,1960.4,10.20166]
[1688386474296,12.74996,1960.8,1960.4,11.657885]
[1688386476007,10.19999,1960.8,1960.4,11.657885]
[1688386476150,5.09996,1960.8,1960.5,1.812]
[1688386476480,5.09991,1960.9,1960.6,10.20094]
[1688386476787,10.20001,1960.8,1960.6,5.10047]
[1688386476988,10.20001,1960.8,1960.6,5.10045]
[1688386478894,5.09995,1960.8,1960.6,5.10045]
[1688386479804,5.09995,1960.8,1960.6,10.20092]
[1688386480397,5.09984,1960.9,1960.6,11.402212]
[1688386480572,5.09955,1961.0,1960.6,11.402212]
[1688386481181,10.19916,1961.0,1960.6,11.402212]
[1688386481486,0.01669992,1960.9,1960.7,1.824]
[1688386481661,0.01669992,1960.9,1960.8,12.74977]
[1688386481857,0.01669992,1960.9,1960.8,14.207147]
[1688386482461,5.09905,1961.2,1960.8,14.207147]
[1688386483504,0.01681638,1961.1,1960.8,14.207147]
[1688386484098,0.01681638,1961.1,1961.0,1.815]
[1688386484476,0.01681638,1961.1,1961.0,14.56357]
[1688386484623,30.56,1961.4,1961.0,16.019927]
[1688386484789,5.09848,1961.4,1961.0,14.56357]
[1688386485201,10.19687,1961.4,1961.0,14.56357]
[1688386485402,10.19687,1961.4,1961.0,12.01386]
[1688386485403,5.09839,1961.4,1961.0,12.01386]
[1688386485601,5.11568282,1961.3,1961.0,12.01386]
[1688386489010,12.76375282,1961.3,1960.8,8.381247]
[1688386489328,1.75637528,1961.2,1960.8,12.74965]
[1688386489513,10.2149646,1961.2,1960.8,12.74965]
[1688386491097,5.1158146,1961.2,1960.8,12.74965]
[1688386491627,10.2149646,1961.2,1960.8,10.19968]
[1688386491788,5.1158146,1961.2,1960.8,10.19968]
[1688386492194,0.0168746,1961.2,1960.8,10.19968]
[1688386492405,0.0168746,1961.2,1960.6,3.492]
[1688386492608,12.7641546,1961.2,1960.6,7.528579]
[1688386493931,12.7641546,1961.2,1960.6,10.805049]
[1688386496345,12.7641546,1961.2,1960.6,13.355279]
[1688386496828,10.2147046,1961.2,1960.6,13.355279]
[1688386498212,14.08856106,1961.2,1960.6,13.355279]
[1688386498404,14.08856106,1961.2,1960.6,10.20082]
[1688386498613,10.19928,1961.0,1960.5,10.20116]
[1688386499393,10.19928,1961.0,1960.5,12.75152]
[1688386499600,0.01669992,1960.9,1960.5,12.75152]
[1688386499794,10.21612992,1960.9,1960.4,9.10070182]
[1688386500124,10.21612992,1960.9,1960.5,5.1007]
[1688386500322,12.76596992,1960.9,1960.4,10.20165]
[1688386501624,12.76596992,1960.9,1960.4,12.75214]
[1688386503239,10.21612992,1960.9,1960.4,12.75214]
[1688386503446,10.21612992,1960.9,1960.4,14.24968774]
[1688386504817,10.21612992,1960.9,1960.4,15.55068774]
[1688386506033,10.21612992,1960.9,1960.4,18.05068774]
[1688386507021,5.11638992,1960.9,1960.4,18.05068774]
[1688386507237,0.01669992,1960.9,1960.6,1.3]
[1688386507424,0.01669992,1960.9,1960.7,12.75052]
[1688386507638,5.099,1961.2,1960.8,2.577052]
[1688386507855,10.19805,1961.2,1960.9,10.19928]
[1688386508244,7.6478,1961.4,1960.9,12.74912]
[1688386508443,5.09852,1961.4,1960.9,14.05112]
[1688386508613,0.01681638,1961.1,1960.9,12.74912]
[1688386508931,0.01681638,1961.1,1961.0,2.575912]
[1688386509133,0.01681638,1961.1,1961.0,14.023482]
[1688386509751,5.09867,1961.3,1961.0,14.023482]
[1688386510532,0.0168746,1961.2,1961.0,14.023482]
[1688386512662,10.1971,1961.4,1961.0,14.023482]
[1688386512821,10.1971,1961.4,1961.0,12.74857]
[1688386513587,10.1971,1961.4,1960.9,5.09949]
[1688386513588,0.01693282,1961.3,1960.9,5.09949]
[1688386513858,5.09897,1961.2,1960.9,5.09949]
[1688386514559,0.01681638,1961.1,1960.9,5.09949]
[1688386515865,0.01681638,1961.1,1960.8,1.275052]
[1688386515866,10.21516638,1961.1,1960.8,1.275052]
[1688386516033,10.21516638,1961.1,1960.8,5.09976]
[1688386516034,5.11598638,1961.1,1960.8,5.09976]
[1688386516927,5.11598638,1961.1,1960.7,5.10007]
[1688386517133,5.11598638,1961.1,1960.6,4.8022]
[1688386517134,12.76474638,1961.1,1960.6,4.8022]
[1688386517327,10.21516638,1961.1,1960.7,10.20033]
[1688386518653,5.11598638,1961.1,1960.7,12.75043]
[1688386518968,5.11598638,1961.1,1960.7,14.05243]
[1688386519170,0.01681638,1961.1,1960.7,14.05243]
[1688386519358,5.11598638,1961.1,1960.7,14.05243]
[1688386519668,5.11598638,1961.1,1960.7,16.28277268]
[1688386521144,10.21515638,1961.1,1960.7,18.78277268]
[1688386522664,10.21515638,1961.1,1960.7,16.23267268]
[1688386522869,10.21515638,1961.1,1960.7,14.93067268]
[1688386523654,10.21515638,1961.1,1960.7,17.48077268]
[1688386524755,5.11598638,1961.1,1960.8,1.74807727]
[1688386525064,0.01681638,1961.1,1960.9,10.19938]
[1688386526857,0.01681638,1961.1,1960.9,12.74922]
[1688386527668,10.19749,1961.3,1960.9,12.74922]
[1688386527833,10.19749,1961.3,1960.9,14.32904973]
[1688386528033,0.313,1961.0,1960.9,14.32904973]
[1688386528267,0.093,1961.0,1960.9,14.32904973]
[1688386528572,0.14175815,1961.0,1960.9,14.32904973]
[1688386530879,0.14175815,1961.0,1960.9,11.77920973]
[1688386532473,0.13395533,1961.0,1960.9,11.77920973]
[1688386533653,0.13395533,1961.0,1960.9,10.19938]
[1688386533861,0.13395533,1961.0,1960.7,2.5]
[1688386534056,0.13395533,1961.0,1960.7,7.60004]
[1688386535968,0.13395533,1961.0,1960.7,12.70025]
[1688386536557,0.13395533,1961.0,1960.7,7.60004]
[1688386536761,0.13395533,1961.0,1960.7,12.70025]
[1688386537010,5.23339533,1961.0,1960.7,14.354998]
[1688386537181,0.13395533,1961.0,1960.7,14.354998]
[1688386538316,0.13395533,1961.0,1960.7,16.905098]
[1688386539311,0.13395533,1961.0,1960.7,18.207098]
[1688386543006,0.09995533,1961.0,1960.7,18.207098]
[1688386543194,0.09995533,1961.0,1960.9,5.09969]
[1688386544530,0.09995533,1961.0,1960.8,10.19957]
[1688386545096,0.09995533,1961.0,1960.8,5.09973]
[1688386546822,10.29889533,1961.0,1960.7,2.5]
[1688386547005,5.19942533,1961.0,1960.7,7.6002]
[1688386550825,0.09995533,1961.0,1960.7,7.6002]
[1688386552911,0.09995533,1961.0,1960.7,2.5]
[1688386553088,5.19945533,1961.0,1960.7,2.5]
[1688386553599,21.53683002,1961.0,1960.7,2.5]
[1688386553810,12.74987,1960.8,1960.7,2.5]
[1688386554011,13.22987,1960.8,1960.7,2.5]
[1688386554592,13.23881408,1960.8,1960.7,2.5]
[1688386556826,13.18881408,1960.8,1960.7,2.5]
[1688386557029,14.76268549,1960.8,1960.7,2.5]
[1688386558197,17.32147365,1960.8,1960.7,2.5]
[1688386559332,25.43793124,1960.8,1960.7,2.5]
[1688386559592,28.03093124,1960.8,1960.7,2.5]
[1688386564053,36.93993124,1960.8,1960.7,2.5]
[1688386564225,37.20767095,1960.8,1960.7,2.5]
[1688386565838,36.93993124,1960.8,1960.7,2.5]
[1688386566020,21.63998124,1960.8,1960.7,2.5]
[1688386566522,21.15998124,1960.8,1960.7,2.5]
[1688386567561,21.15765161,1960.8,1960.7,2.5]
[1688386567732,21.57489234,1960.8,1960.7,2.5]
[1688386568153,22.05489234,1960.8,1960.7,2.5]
[1688386572123,22.05489234,1960.8,1960.0,7.0711]
[1688386572124,5.355,1960.6,1959.1,3.69539071]
[1688386572327,2.20548923,1960.7,1959.3,2.24762937]
[1688386572328,1.302,1959.8,1959.3,2.24762937]
[1688386572536,12.75731,1959.7,1959.3,1.7135]
[1688386572760,12.75731,1959.7,1959.1,10.2086]
[1688386572761,12.75731,1959.7,1959.1,5.10425]
[1688386572961,12.75731,1959.7,1959.2,0.510425]
[1688386573332,12.75731,1959.7,1959.0,1.5683]
[1688386573333,0.48,1959.6,1959.0,1.5683]
[1688386573536,5.10341,1959.5,1959.1,7.31748]
[1688386573946,10.20682,1959.5,1959.1,7.31748]
[1688386574451,10.20682,1959.5,1959.1,12.42186]
[1688386574761,5.10341,1959.5,1959.1,12.42186]
[1688386574950,5.10341,1959.5,1959.1,14.070876]
[1688386575265,10.20675,1959.5,1959.1,8.966496]
[1688386575474,0.00642609,1959.4,1959.1,14.070876]
[1688386577041,5.11006609,1959.4,1959.1,14.070876]
[1688386577238,5.11006609,1959.4,1959.1,8.966496]
[1688386577429,5.11006609,1959.4,1959.1,2.2132]
[1688386577631,5.11006609,1959.4,1959.1,7.31756]
[1688386577864,5.11006609,1959.4,1959.1,12.42194]
[1688386578245,5.11006609,1959.4,1959.1,7.31756]
[1688386578950,10.21370609,1959.4,1959.1,7.31756]
[1688386579150,10.21370609,1959.4,1959.1,2.2132]
[1688386579553,10.21370609,1959.4,1959.0,13.07937]
[1688386579554,12.78201368,1959.4,1959.0,1.5683]
[1688386579751,14.06021505,1959.4,1959.0,1.5683]
[1688386580072,12.78201368,1959.4,1959.0,1.5683]
[1688386580289,12.78201368,1959.4,1958.9,2.2347]
[1688386581468,0.48,1959.3,1958.9,2.2347]
[1688386581655,12.7604,1959.2,1958.9,2.2347]
[1688386582569,5.11085202,1959.1,1958.9,2.2347]
[1688386582784,12.76750202,1959.1,1958.8,1.7593]
[1688386582957,12.76750202,1959.1,1958.8,0.1]
[1688386585954,0.00639202,1959.1,1958.8,0.1]
[1688386586158,0.48639202,1959.1,1958.8,0.1]
[1688386588291,1.24767189,1959.1,1958.8,0.1]
[1688386588969,6.35207189,1959.1,1958.8,0.1]
[1688386589176,1.24767189,1959.1,1958.8,0.1]
[1688386590313,2.55878816,1959.0,1958.8,0.1]
[1688386590614,0.48,1958.9,1958.8,0.1]
[1688386591133,3.34266698,1958.9,1958.8,0.1]
[1688386591311,8.44756698,1958.9,1958.8,0.1]
[1688386591632,13.55883431,1958.9,1958.8,0.1]
[1688386592285,8.45393431,1958.9,1958.8,0.1]
[1688386592485,19.46000739,1958.9,1958.8,0.1]
[1688386592809,22.44664313,1958.9,1958.8,0.1]
[1688386592972,21.15164313,1958.9,1958.8,0.1]
[1688386596421,21.56228405,1958.9,1958.8,0.1]
[1688386598347,22.86428405,1958.9,1958.8,0.1]
[1688386599103,31.27328405,1958.9,1958.8,0.1]
[1688386599996,25.91828405,1958.9,1958.8,0.1]
[1688386601427,24.61628405,1958.9,1958.8,0.1]
[1688386601635,24.61628405,1958.9,1958.7,0.1]
[1688386601636,32.91876917,1958.9,1958.7,0.1]
[1688386601803,5.372,1958.7,1958.5,0.1]
[1688386602005,31.35350816,1958.6,1958.5,0.1]
[1688386602204,31.83350816,1958.6,1958.5,0.1]
[1688386602622,31.83350816,1958.6,1958.0,0.1]
[1688386602623,31.83984658,1958.6,1958.0,0.1]
[1688386602822,2.55878816,1958.3,1958.0,0.1]
[1688386603023,15.32018,1958.2,1958.0,0.1]
[1688386603222,0.48,1958.1,1958.0,0.1]
[1688386603442,13.24747,1958.1,1958.0,0.1]
[1688386603611,13.25374396,1958.1,1958.0,0.1]
[1688386605041,12.77374396,1958.1,1958.0,0.1]
[1688386606153,13.25374396,1958.1,1958.0,0.1]
[1688386606468,0.00627396,1958.1,1958.0,5.70725]
[1688386606627,0.00627396,1958.1,1958.0,13.207954]
[1688386607236,0.00627396,1958.1,1958.0,8.100704]
[1688386607461,5.10624,1958.4,1958.0,8.100704]
[1688386607830,5.10624,1958.4,1958.2,0.5]
[1688386608530,2.56509083,1958.3,1958.0,0.1]
[1688386608756,5.10673,1958.2,1958.0,0.6]
[1688386608931,7.66551816,1958.2,1958.0,0.6]
[1688386609463,0.48,1958.1,1958.0,0.6]
[1688386609780,3.04506212,1958.1,1958.0,0.6]
[1688386610281,0.00627396,1958.1,1958.0,0.6]
[1688386610579,0.510624,1958.4,1958.0,0.6]
[1688386610580,5.10667,1958.3,1958.0,0.6]